fUST/lending_fUST_20250627
["ID","MTS","AMOUNT","RATE_DAILY","PERIOD"]
[367900867,1750959045848,-1095.49,0.00021999,2]
[367900869,1750959045857,-460.0,0.00021999,2]
[367900871,1750959045870,-460.0,0.00021999,2]
[367900873,1750959045879,-460.0,0.00021999,2]
[367900875,1750959045888,-460.02,0.00021999,2]
[367900877,1750959045898,-531.45360547,0.00021999,2]
[367900879,1750959045908,-460.0,0.00021999,2]
[367900881,1750959045917,-1705.06,0.00021999,2]
[367900883,1750959045927,-460.0,0.00021999,2]
[367900885,1750959045936,-1386.89,0.00021999,2]
[367900886,1750959045946,-4027.85,0.00021999,2]
[367900888,1750959045955,-460.0,0.00021999,2]
[367900890,1750959045965,-16803.00601553,0.00022,2]
[367900892,1750959045974,-500.0,0.00022,8]
[367900894,1750959045984,-500.0,0.00022,8]
[367900896,1750959045993,-245913.9072587,0.00022,2]
[367900929,1750959046301,-1839.59115232,0.00022,2]
[367900931,1750959046314,-7355.30643935,0.00022,2]
[367900933,1750959046326,-12720.65273964,0.00022,2]
[367900935,1750959046338,-2765.18610255,0.00022,2]
[367900938,1750959046351,-3157.4254304,0.00022,2]
[367900942,1750959046386,-271.24798728,0.00019999,2]
[367900944,1750959046395,-460.0,0.00021917,2]
[367900946,1750959046406,-43159.64817242,0.00022,2]
[367900949,1750959046417,-8107.60317901,0.00022,2]
[367900951,1750959046429,-79050.36852459,0.00022,2]
[367901004,1750959046981,-500.0,0.00019999,2]
[367901005,1750959046990,-500.0,0.00019999,2]
[367901006,1750959046999,-500.0,0.00019999,2]
[367901007,1750959047008,-500.0,0.00019999,2]
[367901008,1750959047018,-460.0,0.00021643,2]
[367901009,1750959047027,-460.0,0.00021643,2]
[367901010,1750959047036,-460.0,0.00021917,2]
[367901011,1750959047047,-3697.49170161,0.00022,2]
[367901017,1750959047744,-14087.68,0.00021633,10]
[367901018,1750959047755,-460.0,0.00021643,2]
[367901019,1750959047765,-460.0,0.00021643,2]
[367901020,1750959047775,-461.69,0.00021643,2]
[367901021,1750959047786,-460.0,0.00021917,2]
[367901022,1750959047974,-460.0,0.00021917,2]
[367901023,1750959047985,-461.69,0.00021917,2]
[367901024,1750959047994,-90156.79986382,0.00022,2]
[367901026,1750959122296,152.6,0.000229,31]
[367901027,1750959122351,152.6,0.000229,31]
[367901028,1750959122410,152.6,0.000229,31]
[367901029,1750959122466,152.6,0.000229,31]
[367901030,1750959122537,152.6,0.000229,31]
[367901031,1750959122593,152.6,0.000229,31]
[367901032,1750959122648,152.6,0.000229,31]
[367901037,1750959506233,246.054829,0.00013699,2]
[367901038,1750959727401,152.61,0.000229,31]
[367901039,1750959727442,152.61,0.000229,31]
[367901040,1750959727509,152.61,0.000229,31]
[367901041,1750959727567,152.61,0.000229,31]
[367901042,1750959727630,152.61,0.000229,31]
[367901043,1750959727687,152.61,0.000229,31]
[367901044,1750959727747,152.61,0.000229,31]
[367901190,1750960238281,-160.0,0.00017797,2]
[367901191,1750960238291,-1000.0,0.00017851,8]
[367901192,1750960238305,-315.1357931,0.00018725,2]
[367901193,1750960238329,-267.09860424,0.00018725,2]
[367901301,1750960240418,-417.76560266,0.00018725,2]
[367901303,1750960240427,-300.0,0.00018967,2]
[367901305,1750960240436,-300.0,0.00018967,2]
[367901307,1750960240446,-160.0,0.00018968,2]
[367901309,1750960240455,-836.92866116,0.00018968,2]
[367901311,1750960240464,-392.90314848,0.00018968,2]
[367901314,1750960240484,-454.02008595,0.00018968,2]
[367901316,1750960240493,-160.0,0.00018968,2]
[367901318,1750960240502,-60.62816361,0.00018968,2]
[367901320,1750960240513,-153.09564425,0.00018968,2]
[367901322,1750960240522,-230.24506774,0.00018968,2]
[367901324,1750960240531,-160.0,0.00018968,2]
[367901326,1750960240541,-169.722858,0.00019178,2]
[367901328,1750960240550,-243.698862,0.0001942,2]
[367901330,1750960240559,-957.50930292,0.00019793,2]
[367901332,1750960240570,-6583.84387652,0.00019793,2]
[367901344,1750960240666,-793.54430356,0.00019793,2]
[367901346,1750960240676,-207.4,0.00019823,2]
[367901348,1750960240686,-1501.77113207,0.000199,2]
[367901350,1750960240695,-1501.771132,0.00020107,2]
[367901351,1750960240704,-246.054829,0.00020187,2]
[367901354,1750960240714,-375.0,0.00020201,2]
[367901356,1750960240724,-1501.771132,0.00020314,3]
[367901358,1750960240733,-375.0,0.00020448,2]
[367901360,1750960240742,-375.0,0.0002052,2]
[367901362,1750960240751,-1501.771132,0.00020521,3]
[367901363,1750960240760,-63.08692208,0.00020631,2]
[367901596,1750960243200,-499.950315,0.00017998,2]
[367901603,1750960243259,-500.049685,0.00017998,2]
[367901605,1750960243269,-1000.0,0.00017999,2]
[367901607,1750960243278,-1000.0,0.00017999,2]
[367901609,1750960243288,-311.91307792,0.00020631,2]
[367901611,1750960243299,-202.0,0.00020632,2]
[367901613,1750960243308,-420.0,0.00020674,2]
[367901615,1750960243317,-420.0,0.00020674,2]
[367901617,1750960243326,-375.0,0.00020677,2]
[367901619,1750960243336,-1501.771132,0.00020728,3]
[367901621,1750960243345,-823.58893214,0.000208,2]
[367901623,1750960243355,-1781.1160353,0.00020889,2]
[367901624,1750960243365,-1501.771132,0.00020934,4]
[367901626,1750960243374,-1950.26966575,0.00020965,2]
[367901629,1750960243386,-3049.73033425,0.00020965,2]
[367901631,1750960243395,-500.0,0.00020965,2]
[367901633,1750960243404,-500.0,0.00020965,2]
[367901635,1750960243415,-500.0,0.00020965,2]
[367901637,1750960243424,-500.0,0.00020965,2]
[367901640,1750960243444,-500.0,0.00020965,2]
[367901642,1750960243454,-500.0,0.00020965,2]
[367901644,1750960243464,-500.0,0.00020965,2]
[367901646,1750960243473,-500.0,0.00020965,2]
[367901648,1750960243484,-500.0,0.00020965,2]
[367901650,1750960243495,-500.0,0.00020965,2]
[367901652,1750960243504,-500.0,0.00020965,2]
[367901654,1750960243514,-500.0,0.00020965,2]
[367901656,1750960243523,-500.0,0.00020965,2]
[367901658,1750960243534,-500.0,0.00020965,2]
[367901660,1750960243543,-500.0,0.00020965,2]
[367901662,1750960243553,-500.0,0.00020965,2]
[367901664,1750960243563,-500.0,0.00020965,2]
[367901666,1750960243572,-500.0,0.00020965,2]
[367901668,1750960243582,-160.0,0.0002097,10]
[367901670,1750960243591,-213.72380786,0.0002097,10]
[367901672,1750960243601,-524.25751634,0.0002097,10]
[367901674,1750960243610,-270.45528213,0.00020979,2]
[367901676,1750960243619,-500.0,0.00020979,2]
[367901678,1750960243629,-500.0,0.00020979,2]
[367901680,1750960243638,-500.0,0.00020979,2]
[367901682,1750960243648,-500.0,0.00020979,2]
[367901684,1750960243658,-500.0,0.00020979,2]
[367901686,1750960243668,-500.0,0.00020979,2]
[367901688,1750960243678,-258.64824967,0.00020979,2]
[367901690,1750960243689,-213.72380786,0.0002098,10]
[367901692,1750960243698,-524.25751634,0.0002098,10]
[367901694,1750960243707,-846.92323443,0.0002098,10]
[367901696,1750960243717,-10941.71731346,0.0002098,10]
[367901937,1750960246161,-736.40236497,0.00017999,2]
[367901938,1750960246215,-263.59763503,0.00017999,2]
[367901939,1750960246225,-446.17332533,0.00017999,2]
[367901940,1750960246234,-2365.08268654,0.0002098,10]
[367901942,1750960246244,-17216.6955347,0.0002099,2]
[367902310,1750960332149,152.63,0.000229,31]
[367902311,1750960332216,152.63,0.000229,31]
[367902312,1750960332278,152.63,0.000229,31]
[367902313,1750960332339,152.63,0.000229,31]
[367902314,1750960332379,152.63,0.000229,31]
[367902315,1750960332455,152.63,0.000229,31]
[367902316,1750960332511,152.63,0.000229,31]
[367902317,1750960536101,265.537905,0.00013699,2]
[367902320,1750960936074,152.66,0.000229,31]
[367902321,1750960936135,152.66,0.000229,31]
[367902322,1750960936203,152.66,0.000229,31]
[367902323,1750960936243,152.66,0.000229,31]
[367902324,1750960936369,152.66,0.000229,31]
[367902325,1750960936432,152.66,0.000229,31]
[367902326,1750960937674,152.66,0.000229,31]
[367902427,1750961438363,-169.722858,0.0001993,2]
[367902429,1750961438373,-265.537905,0.00020187,2]
[367902431,1750961438383,-160.0,0.00020728,2]
[367902433,1750961438392,-160.0,0.00020792,2]
[367902435,1750961438402,-549.0592881,0.000208,2]
[367902437,1750961438412,-160.0,0.00020873,2]
[367902439,1750961438422,-1200.0,0.00020878,2]
[367902440,1750961438431,-300.0,0.00020878,2]
[367902442,1750961438440,-213.72380786,0.00020879,2]
[367902445,1750961438451,-230.24506774,0.00020879,2]
[367902446,1750961438462,-160.0,0.00020879,2]
[367902449,1750961438472,-160.0,0.00020879,2]
[367902451,1750961438482,-846.92323443,0.00020879,2]
[367902453,1750961438492,-836.92866116,0.00020879,2]
[367902454,1750961438501,-12560.17507789,0.00020879,2]
[367902457,1750961438511,-214.88139422,0.00020887,2]
[367902459,1750961438520,-1282.88585342,0.000209,4]
[367902462,1750961438530,-207.4,0.00020966,2]
[367902464,1750961438540,-666.0,0.00020966,2]
[367902466,1750961438550,-846.92323443,0.0002097,10]
[367902468,1750961438560,-500.0,0.00020977,2]
[367902470,1750961438569,-500.0,0.00020977,2]
[367902472,1750961438579,-500.0,0.00020977,2]
[367902474,1750961438588,-500.0,0.00020977,2]
[367902476,1750961438598,-500.0,0.00020977,2]
[367902478,1750961438608,-500.0,0.00020977,2]
[367902480,1750961438617,-184.77128634,0.00020977,2]
[367902481,1750961438628,-162.59933981,0.00020977,2]
[367902483,1750961438638,-500.0,0.00020977,2]
[367902485,1750961438647,-500.0,0.00020977,2]
[367902487,1750961438657,-500.0,0.00020977,2]
[367902489,1750961438666,-610.76854015,0.00020977,2]
[367902491,1750961438677,-500.0,0.00020977,2]
[367902493,1750961438686,-176.24964483,0.00020977,2]
[367902495,1750961438696,-500.0,0.00020977,2]
[367902497,1750961438705,-500.0,0.00020977,2]
[367902499,1750961438715,-500.0,0.00020977,2]
[367902501,1750961438725,-500.0,0.00020977,2]
[367902502,1750961438734,-396.75081326,0.00020977,2]
[367902504,1750961438744,-500.0,0.00020977,2]
[367902506,1750961438754,-500.0,0.00020977,2]
[367902508,1750961438763,-449.04501392,0.00020977,2]
[367902510,1750961438773,-500.0,0.00020977,2]
[367902512,1750961438782,-500.0,0.00020977,2]
[367902514,1750961438791,-500.0,0.00020977,2]
[367902516,1750961438801,-500.0,0.00020977,2]
[367902518,1750961438810,-320.23846064,0.00020977,2]
[367902520,1750961438820,-500.0,0.00020977,2]
[367902522,1750961438829,-500.0,0.00020977,2]
[367902524,1750961438838,-500.0,0.00020977,2]
[367902526,1750961438848,-500.0,0.00020977,2]
[367902528,1750961438857,-161.7958618,0.00020977,2]
[367902530,1750961438868,-500.0,0.00020977,2]
[367902532,1750961438883,-500.0,0.00020977,2]
[367902534,1750961438893,-500.0,0.00020977,2]
[367902536,1750961438903,-500.0,0.00020977,2]
[367902538,1750961438914,-500.0,0.00020977,2]
[367902540,1750961438924,-293.9881286,0.00020977,2]
[367902542,1750961438934,-500.0,0.00020977,2]
[367902544,1750961438946,-500.0,0.00020977,2]
[367902546,1750961438956,-186.91946113,0.00020977,2]
[367902548,1750961438966,-500.0,0.00020977,2]
[367902550,1750961438975,-500.0,0.00020977,2]
[367902552,1750961438985,-595.57521442,0.00020977,2]
[367902554,1750961438994,-500.0,0.00020977,2]
[367902556,1750961439004,-500.0,0.00020977,2]
[367902558,1750961439013,-500.0,0.00020977,2]
[367902560,1750961439023,-500.0,0.00020977,2]
[367902562,1750961439033,-500.0,0.00020977,2]
[367902564,1750961439042,-500.0,0.00020977,2]
[367902566,1750961439052,-500.0,0.00020977,2]
[367902568,1750961439062,-500.0,0.00020977,2]
[367902570,1750961439071,-500.0,0.00020977,2]
[367902572,1750961439081,-500.0,0.00020977,2]
[367902574,1750961439091,-500.0,0.00020977,2]
[367902576,1750961439101,-500.0,0.00020977,2]
[367902578,1750961439111,-5150.35895196,0.00020977,2]
[367902580,1750961439121,-500.0,0.00020977,2]
[367902582,1750961439130,-500.0,0.00020977,2]
[367902584,1750961439140,-500.0,0.00020977,2]
[367902586,1750961439150,-215.12626618,0.00020977,2]
[367902588,1750961439159,-500.0,0.00020977,2]
[367902590,1750961439169,-500.0,0.00020977,2]
[367902592,1750961439178,-500.0,0.00020977,2]
[367902594,1750961439188,-500.0,0.00020977,2]
[367902596,1750961439197,-419.48053226,0.00020977,2]
[367902599,1750961439210,-80.51946774,0.00020977,2]
[367902601,1750961439220,-500.0,0.00020977,2]
[367902603,1750961439230,-500.0,0.00020977,2]
[367902605,1750961439240,-500.0,0.00020977,2]
[367902607,1750961439249,-173.60415826,0.00020977,2]
[367902616,1750961439331,-326.39584174,0.00020977,2]
[367902619,1750961439342,-500.0,0.00020977,2]
[367902621,1750961439351,-500.0,0.00020977,2]
[367902623,1750961439361,-500.0,0.00020977,2]
[367902625,1750961439371,-500.0,0.00020977,2]
[367902627,1750961439380,-500.0,0.00020977,2]
[367902629,1750961439390,-500.0,0.00020977,2]
[367902631,1750961439399,-500.0,0.00020977,2]
[367902633,1750961439408,-1714.67675185,0.00020978,2]
[367902635,1750961439417,-16803.00601553,0.00020978,2]
[367902637,1750961439427,-978.09,0.0002098,3]
[367902639,1750961439436,-489.05,0.0002098,3]
[367902641,1750961439446,-244.52,0.0002098,3]
[367902643,1750961439455,-733.6,0.0002098,3]
[367902645,1750961439464,-23370.72,0.0002098,10]
[367902647,1750961439477,-1000.0,0.00020989,2]
[367902649,1750961439486,-1000.0,0.00020989,2]
[367902674,1750961439709,-1000.0,0.00020989,2]
[367902676,1750961439718,-1000.0,0.00020989,2]
[367902678,1750961439728,-49136.27535398,0.0002099,2]
[367902680,1750961439737,-183.85587098,0.0002099,2]
[367902682,1750961439746,-151.0,0.0002099,2]
[367902684,1750961439755,-368.0934949,0.00021,2]
[367902686,1750961439764,-365.9458251,0.00021,2]
[367902688,1750961439773,-1149.8955254,0.00021,2]
[367902690,1750961439782,-363.5779204,0.00021,2]
[367902692,1750961439792,-153.0,0.00021,2]
[367902694,1750961439801,-354.528593,0.00021,2]
[367902696,1750961439810,-365.9458251,0.00021,2]
[367902698,1750961439819,-153.0,0.00021,2]
[367902700,1750961439828,-690.642,0.00021021,2]
[367902702,1750961439838,-177.4452169,0.00021041,2]
[367902704,1750961439847,-177.4452169,0.00021041,2]
[367902706,1750961439856,-177.4452169,0.00021041,2]
[367902708,1750961439868,-177.4452169,0.00021041,2]
[367902709,1750961439879,-177.4452169,0.00021041,2]
[367902711,1750961439888,-177.4452169,0.00021041,2]
[367902713,1750961439897,-177.4452169,0.00021041,2]
[367902715,1750961439906,-177.4452169,0.00021041,2]
[367902717,1750961439916,-177.4452169,0.00021041,2]
[367902719,1750961439926,-177.4452169,0.00021041,2]
[367902721,1750961439935,-177.4452169,0.00021041,2]
[367902724,1750961439945,-177.4452169,0.00021041,2]
[367902727,1750961439955,-165.6573972,0.00021041,2]
[367902730,1750961439964,-1282.88585341,0.00021072,4]
[367902733,1750961439974,-331.358,0.00021076,2]
[367902736,1750961439983,-202.0,0.00021092,2]
[367902738,1750961439993,-1282.88585341,0.00021245,4]
[367902739,1750961440003,-1081.0,0.00021267,2]
[367902741,1750961440013,-550.93,0.00021273,2]
[367902743,1750961440022,-202.0,0.00021307,2]
[367902746,1750961440031,-966.0,0.00021316,2]
[367902748,1750961440040,-654.0,0.00021316,2]
[367902751,1750961440050,-2161.0,0.00021316,2]
[367902753,1750961440059,-202.0,0.00021364,2]
[367902755,1750961440068,-1282.88585341,0.00021417,5]
[367902757,1750961440077,-151.0,0.000215,4]
[367902759,1750961440086,-151.0,0.00021501,2]
[367902763,1750961440096,-151.0,0.00021501,2]
[367902766,1750961440105,-200.10080426,0.00021501,2]
[367902768,1750961440115,-151.0,0.00021501,2]
[367902771,1750961440124,-198.72712322,0.00021528,2]
[367902773,1750961440133,-151.0,0.00021528,2]
[367902775,1750961440143,-1000.0,0.00021542,2]
[367902777,1750961440152,-1000.0,0.00021542,2]
[367902779,1750961440161,-374.88102967,0.00021543,2]
[367902781,1750961440169,-50850.53837761,0.00021543,2]
[367902783,1750961440179,-160.0,0.00021543,3]
[367902786,1750961440189,-213.72380786,0.00021543,3]
[367902788,1750961440199,-846.92323443,0.00021543,3]
[367902790,1750961440208,-7856.53045895,0.00021543,3]
[367902792,1750961440216,-254.83480299,0.00021556,2]
[367902794,1750961440225,-1000.0,0.00021559,2]
[367902796,1750961440235,-1446.117295,0.0002156,4]
[367902798,1750961440244,-1282.88585341,0.0002159,5]
[367902800,1750961440253,-151.0,0.000216,3]
[367902802,1750961440262,-151.0,0.000216,4]
[367902804,1750961440271,-1165.0,0.00021613,18]
[367902806,1750961440280,-1000.0,0.00021632,2]
[367902808,1750961440289,-374.88102967,0.00021632,2]
[367902809,1750961440298,-1000.0,0.00021642,2]
[367902811,1750961440307,-1000.0,0.00021642,2]
[367902813,1750961440316,-1000.0,0.00021642,2]
[367902815,1750961440325,-1000.0,0.00021642,2]
[367902817,1750961440334,-1000.0,0.00021642,2]
[367902819,1750961440345,-460.0,0.00021643,2]
[367902822,1750961440355,-460.0,0.00021643,2]
[367902823,1750961440365,-460.0,0.00021643,2]
[367902825,1750961440374,-441.22791932,0.00021643,2]
[367902827,1750961440383,-500.86462054,0.00021643,2]
[367902829,1750961440392,-461.76540482,0.00021643,2]
[367902831,1750961440401,-460.0,0.00021643,2]
[367902833,1750961440410,-460.65133366,0.00021643,2]
[367902835,1750961440419,-460.0,0.00021643,2]
[367902837,1750961440428,-460.0,0.00021643,2]
[367902839,1750961440437,-430.0,0.00021643,2]
[367902841,1750961440447,-460.0,0.00021643,2]
[367902843,1750961440456,-434.3900369,0.00021643,2]
[367902845,1750961440466,-460.0,0.00021643,2]
[367902847,1750961440476,-460.0,0.00021643,2]
[367902849,1750961440485,-460.0,0.00021643,2]
[367902851,1750961440494,-460.0,0.00021643,2]
[367902853,1750961440504,-430.0,0.00021643,2]
[367902856,1750961440515,-460.0,0.00021643,2]
[367902858,1750961440526,-460.0,0.00021643,2]
[367902860,1750961440536,-460.0,0.00021643,2]
[367902862,1750961440546,-386.29497033,0.00021643,2]
[367902864,1750961440555,-423.79159378,0.00021643,2]
[367902866,1750961440564,-295.65391156,0.00021643,2]
[367902867,1750961440573,-436.13064833,0.00021643,2]
[367902869,1750961440582,-470.41250401,0.00021643,2]
[367902871,1750961440591,-238.55554836,0.00021643,2]
[367902873,1750961440600,-460.0,0.00021643,2]
[367902875,1750961440609,-441.95912633,0.00021643,2]
[367902877,1750961440619,-460.0,0.00021643,2]
[367902879,1750961440629,-336.88294111,0.00021643,2]
[367902881,1750961440638,-460.0,0.00021643,2]
[367902883,1750961440647,-338.94080849,0.00021643,2]
[367902885,1750961440657,-522.67730659,0.00021643,2]
[367902887,1750961440667,-460.0,0.00021643,2]
[367902890,1750961440683,-461.44243484,0.00021643,2]
[367902892,1750961440694,-460.0,0.00021643,2]
[367902893,1750961440704,-460.0,0.00021643,2]
[367902895,1750961440713,-430.0,0.00021643,2]
[367902897,1750961440722,-460.0,0.00021643,2]
[367902899,1750961440732,-460.0,0.00021643,2]
[367902901,1750961440741,-460.0,0.00021643,2]
[367902903,1750961440750,-460.0,0.00021643,2]
[367902905,1750961440761,-460.0,0.00021643,2]
[367902907,1750961440770,-460.0,0.00021643,2]
[367902909,1750961440780,-460.0,0.00021643,2]
[367902911,1750961440790,-519.10994996,0.00021643,2]
[367902913,1750961440799,-363.98763162,0.00021643,2]
[367902915,1750961440808,-460.0,0.00021643,2]
[367902917,1750961440818,-460.0,0.00021643,2]
[367902919,1750961440826,-191.66619251,0.00021643,2]
[367902921,1750961440836,-460.0,0.00021643,2]
[367902923,1750961440845,-460.0,0.00021643,2]
[367902925,1750961440854,-401.20428764,0.00021643,2]
[367902927,1750961440865,-460.0,0.00021643,2]
[367902929,1750961440879,-241.13834208,0.00021643,2]
[367902931,1750961440888,-461.87243434,0.00021643,2]
[367902933,1750961440897,-460.0,0.00021643,2]
[367902935,1750961440908,-264.95407513,0.00021643,2]
[367902938,1750961440918,-460.0,0.00021643,2]
[367902939,1750961440927,-460.0,0.00021643,2]
[367902941,1750961440936,-460.0,0.00021643,2]
[367902943,1750961440946,-460.0,0.00021643,2]
[367902945,1750961440955,-460.0,0.00021643,2]
[367902947,1750961440964,-460.0,0.00021643,2]
[367902949,1750961440973,-460.0,0.00021643,2]
[367902951,1750961440983,-460.0,0.00021643,2]
[367902953,1750961440992,-460.0,0.00021643,2]
[367902955,1750961441001,-460.0,0.00021643,2]
[367902957,1750961441011,-460.0,0.00021643,2]
[367902959,1750961441020,-460.0,0.00021643,2]
[367902961,1750961441029,-460.0,0.00021643,2]
[367902963,1750961441038,-460.0,0.00021643,2]
[367902965,1750961441047,-430.0,0.00021643,2]
[367902967,1750961441057,-460.0,0.00021643,2]
[367902969,1750961441066,-460.0,0.00021643,2]
[367902971,1750961441075,-460.0,0.00021643,2]
[367902973,1750961441085,-460.0,0.00021643,2]
[367902975,1750961441094,-460.0,0.00021643,2]
[367902977,1750961441103,-460.0,0.00021643,2]
[367902979,1750961441114,-460.0,0.00021643,2]
[367902981,1750961441123,-430.28821203,0.00021643,2]
[367902983,1750961441132,-460.0,0.00021643,2]
[367902985,1750961441141,-460.0,0.00021643,2]
[367902987,1750961441150,-460.0,0.00021643,2]
[367902989,1750961441160,-460.0,0.00021643,2]
[367902991,1750961441169,-460.0,0.00021643,2]
[367902993,1750961441178,-460.0,0.00021643,2]
[367902995,1750961441187,-460.0,0.00021643,2]
[367902997,1750961441197,-460.0,0.00021643,2]
[367902999,1750961441206,-382.19491668,0.00021643,2]
[367903002,1750961441215,-518.15329318,0.00021643,2]
[367903003,1750961441225,-430.73279694,0.00021643,2]
[367903006,1750961441234,-460.0,0.00021643,2]
[367903007,1750961441243,-460.0,0.00021643,2]
[367903009,1750961441252,-460.0,0.00021643,2]
[367903012,1750961441262,-460.0,0.00021643,2]
[367903013,1750961441271,-460.0,0.00021643,2]
[367903015,1750961441280,-460.0,0.00021643,2]
[367903017,1750961441290,-460.0,0.00021643,2]
[367903020,1750961441299,-460.0,0.00021643,2]
[367903021,1750961441308,-460.0,0.00021643,2]
[367903023,1750961441318,-460.0,0.00021643,2]
[367903025,1750961441327,-1012.85984742,0.00021643,2]
[367903028,1750961441336,-460.0,0.00021643,2]
[367903030,1750961441346,-460.0,0.00021643,2]
[367903032,1750961441356,-460.0,0.00021643,2]
[367903033,1750961441365,-460.0,0.00021643,2]
[367903036,1750961441374,-460.0,0.00021643,2]
[367903038,1750961441384,-460.0,0.00021643,2]
[367903040,1750961441394,-460.0,0.00021643,2]
[367903042,1750961441405,-152.4872318,0.00021643,2]
[367903044,1750961441416,-560.46,0.00021643,2]
[367903046,1750961441425,-460.0,0.00021643,2]
[367903048,1750961441435,-460.0,0.00021643,2]
[367903050,1750961441444,-460.0,0.00021643,2]
[367903051,1750961441453,-460.0,0.00021643,2]
[367903054,1750961441463,-460.0,0.00021643,2]
[367903056,1750961441472,-460.0,0.00021643,2]
[367903058,1750961441482,-460.0,0.00021643,2]
[367903060,1750961441493,-460.0,0.00021643,2]
[367903062,1750961441502,-460.0,0.00021643,2]
[367903064,1750961441512,-460.0,0.00021643,2]
[367903066,1750961441521,-460.0,0.00021643,2]
[367903068,1750961441530,-460.0,0.00021643,2]
[367903070,1750961441541,-460.0,0.00021643,2]
[367903072,1750961441550,-447.36223661,0.00021643,2]
[367903074,1750961441559,-460.0,0.00021643,2]
[367903076,1750961441568,-460.0,0.00021643,2]
[367903078,1750961441577,-460.0,0.00021643,2]
[367903080,1750961441587,-460.0,0.00021643,2]
[367903082,1750961441596,-500.0,0.00021643,2]
[367903084,1750961441606,-460.0,0.00021643,2]
[367903086,1750961441615,-460.0,0.00021643,2]
[367903088,1750961441625,-460.0,0.00021643,2]
[367903090,1750961441634,-460.0,0.00021643,2]
[367903092,1750961441643,-460.0,0.00021643,2]
[367903093,1750961441652,-504.70019226,0.00021643,2]
[367903095,1750961441661,-460.0,0.00021643,2]
[367903097,1750961441671,-460.0,0.00021643,2]
[367903099,1750961441680,-460.0,0.00021643,2]
[367903101,1750961441689,-460.0,0.00021643,2]
[367903103,1750961441698,-348.27371383,0.00021643,2]
[367903105,1750961441707,-460.0,0.00021643,2]
[367903107,1750961441716,-460.0,0.00021643,2]
[367903109,1750961441726,-460.0,0.00021643,2]
[367903110,1750961441735,-460.0,0.00021643,2]
[367903111,1750961441744,-460.0,0.00021643,2]
[367903112,1750961441753,-410.44351872,0.00021643,2]
[367903113,1750961441764,-460.0,0.00021643,2]
[367903114,1750961441773,-460.0,0.00021643,2]
[367903115,1750961441782,-500.0,0.00021643,2]
[367903116,1750961441791,-533.62805799,0.00021643,2]
[367903117,1750961441800,-460.0,0.00021643,2]
[367903118,1750961441810,-649.77,0.00021643,2]
[367903119,1750961441819,-460.0,0.00021643,2]
[367903120,1750961441828,-436.96312873,0.00021643,2]
[367903121,1750961441837,-460.0,0.00021643,2]
[367903122,1750961441846,-460.0,0.00021643,2]
[367903123,1750961441855,-405.08867872,0.00021643,2]
[367903124,1750961441866,-460.0,0.00021643,2]
[367903125,1750961441879,-460.0,0.00021643,2]
[367903126,1750961441887,-460.0,0.00021643,2]
[367903127,1750961441897,-460.0,0.00021643,2]
[367903128,1750961441906,-460.0,0.00021643,2]
[367903129,1750961441917,-460.0,0.00021643,2]
[367903131,1750961441926,-460.0,0.00021643,2]
[367903132,1750961441936,-460.0,0.00021643,2]